[Event "*** SCC Grand Prix: Titled Tuesday Blitz"]
[Site "Chess.com"]
[Date "2020.07.07"]
[Round "10"]
[White "Cxrjs"]
[Black "mr65"]
[Result "1-0"]
[WhiteElo "2288"]
[BlackElo "2107"]
[TimeControl "180+1"]
[EndTime "11:57:50 PDT"]
[Termination "Cxrjs won by resignation"]

1. e4 {[%clk 0:03:00.9]} 1... e5 {[%clk 0:02:58.9]} 2. Nf3 {[%clk 0:02:59.7]}
2... Nc6 {[%clk 0:02:58.9]} 3. Bb5 {[%clk 0:03:00]} 3... a6 {[%clk 0:02:58.1]}
4. Ba4 {[%clk 0:03:00.3]} 4... Nf6 {[%clk 0:02:58.1]} 5. Qe2 {[%clk 0:03:00.8]}
5... b5 {[%clk 0:02:54.1]} 6. Bb3 {[%clk 0:03:01.1]} 6... Be7 {[%clk 0:02:54.3]}
7. c3 {[%clk 0:03:00.6]} 7... d6 {[%clk 0:02:52.2]} 8. O-O {[%clk 0:03:00.5]}
8... O-O {[%clk 0:02:51.4]} 9. Rd1 {[%clk 0:03:00.4]} 9... Na5 {[%clk
0:02:50.9]} 10. Bc2 {[%clk 0:03:00.4]} 10... c5 {[%clk 0:02:50.7]} 11. d3 {[%clk
0:02:58]} 11... Bb7 {[%clk 0:02:45.8]} 12. Nbd2 {[%clk 0:02:58.3]} 12... Qc7
{[%clk 0:02:45.1]} 13. Nf1 {[%clk 0:02:57]} 13... Nc6 {[%clk 0:02:41.4]} 14. Ng3
{[%clk 0:02:53.5]} 14... g6 {[%clk 0:02:41]} 15. Rf1 {[%clk 0:02:41.1]} 15... d5
{[%clk 0:02:34.7]} 16. h3 {[%clk 0:02:37.6]} 16... Rfe8 {[%clk 0:02:28.6]} 17.
Nh2 {[%clk 0:02:33.4]} 17... dxe4 {[%clk 0:02:26.5]} 18. dxe4 {[%clk 0:02:30.9]}
18... b4 {[%clk 0:02:25.6]} 19. Bh6 {[%clk 0:01:55.3]} 19... bxc3 {[%clk
0:02:20.4]} 20. bxc3 {[%clk 0:01:54.9]} 20... Rad8 {[%clk 0:02:15.6]} 21. Ng4
{[%clk 0:01:29.5]} 21... Nxg4 {[%clk 0:02:13]} 22. hxg4 {[%clk 0:01:28.6]} 22...
Bf8 {[%clk 0:02:10.7]} 23. Be3 {[%clk 0:00:54.9]} 23... Qa5 {[%clk 0:01:51.4]}
24. Qc4 {[%clk 0:00:47.2]} 24... Qb5 {[%clk 0:01:46.4]} 25. Bb3 {[%clk
0:00:36.7]} 25... Qxc4 {[%clk 0:01:38.1]} 26. Bxc4 {[%clk 0:00:37.6]} 26... Na5
{[%clk 0:01:37.7]} 27. Be2 {[%clk 0:00:37.2]} 27... Be7 {[%clk 0:01:05.3]} 28.
Rab1 {[%clk 0:00:33.9]} 28... Bc8 {[%clk 0:01:02]} 29. g5 {[%clk 0:00:26.3]}
29... Be6 {[%clk 0:00:36.4]} 30. Bxa6 {[%clk 0:00:19.7]} 30... Nc4 {[%clk
0:00:32.9]} 31. Bc1 {[%clk 0:00:15.5]} 31... Ra8 {[%clk 0:00:30]} 32. Bb5 {[%clk
0:00:13.5]} 32... Rxa2 {[%clk 0:00:28]} 33. Bxe8 {[%clk 0:00:12.5]} 1-0

[Event "*** SCC Grand Prix: Titled Tuesday Blitz"]
[Site "Chess.com"]
[Date "2020.07.07"]
[Round "10"]
[White "Arathorn2"]
[Black "IngOscarArdila"]
[Result "1-0"]
[WhiteElo "2295"]
[BlackElo "2167"]
[TimeControl "180+1"]
[EndTime "11:57:50 PDT"]
[Termination "Arathorn2 won by resignation"]

1. d4 {[%clk 0:03:00.9]} 1... Nf6 {[%clk 0:02:59]} 2. c4 {[%clk 0:03:01.1]} 2...
g6 {[%clk 0:02:58.7]} 3. Nc3 {[%clk 0:03:00.6]} 3... d6 {[%clk 0:02:57.9]} 4. e4
{[%clk 0:02:59.4]} 4... Bg7 {[%clk 0:02:57.2]} 5. h3 {[%clk 0:02:59.8]} 5... O-O
{[%clk 0:02:55.8]} 6. Be3 {[%clk 0:03:00.3]} 6... Nbd7 {[%clk 0:02:55.8]} 7. Nf3
{[%clk 0:02:58.2]} 7... e5 {[%clk 0:02:56.1]} 8. d5 {[%clk 0:02:57.2]} 8... a5
{[%clk 0:02:54]} 9. Nd2 {[%clk 0:02:56.2]} 9... c6 {[%clk 0:02:52.4]} 10. Be2
{[%clk 0:02:55]} 10... cxd5 {[%clk 0:02:52.1]} 11. cxd5 {[%clk 0:02:54.7]} 11...
Nc5 {[%clk 0:02:46.4]} 12. O-O {[%clk 0:02:47.9]} 12... b6 {[%clk 0:02:43.6]}
13. a3 {[%clk 0:02:45.8]} 13... Bd7 {[%clk 0:02:38.6]} 14. b4 {[%clk 0:02:44.8]}
14... axb4 {[%clk 0:02:36]} 15. axb4 {[%clk 0:02:45.7]} 15... Rxa1 {[%clk
0:02:34]} 16. Qxa1 {[%clk 0:02:45]} 16... Nb7 {[%clk 0:02:17.5]} 17. Qa6 {[%clk
0:02:36.2]} 17... Qa8 {[%clk 0:02:11.4]} 18. Bxb6 {[%clk 0:02:24.6]} 18... Rc8
{[%clk 0:01:57.4]} 19. Qxa8 {[%clk 0:02:17.1]} 19... Rxa8 {[%clk 0:01:56.9]} 20.
Nc4 {[%clk 0:02:13.5]} 20... Ne8 {[%clk 0:01:44.9]} 21. f3 {[%clk 0:02:08.9]}
21... f5 {[%clk 0:01:44.2]} 22. Rc1 {[%clk 0:01:55.4]} 22... Nf6 {[%clk
0:01:39.3]} 23. Bc7 {[%clk 0:01:49.7]} 23... Bh6 {[%clk 0:01:38]} 24. Rc2 {[%clk
0:01:46.3]} 24... Ra1+ {[%clk 0:01:36.5]} 25. Kf2 {[%clk 0:01:42.6]} 25... Ne8
{[%clk 0:01:36.1]} 26. Bb6 {[%clk 0:01:35.9]} 26... fxe4 {[%clk 0:01:22.3]} 27.
Nxe4 {[%clk 0:01:29.9]} 27... Kg7 {[%clk 0:01:12.4]} 28. Na5 {[%clk 0:01:17.2]}
28... Ba4 {[%clk 0:00:49.7]} 29. Rc8 {[%clk 0:00:53.2]} 29... Ra2 {[%clk
0:00:49.4]} 30. Nc3 {[%clk 0:00:43.4]} 30... Bd7 {[%clk 0:00:38.1]} 31. Rxe8
{[%clk 0:00:36.7]} 31... Rxe2+ {[%clk 0:00:37.2]} 32. Kxe2 {[%clk 0:00:36.8]}
32... Bxe8 {[%clk 0:00:31.1]} 33. Nxb7 {[%clk 0:00:36.8]} 33... Kf6 {[%clk
0:00:26.2]} 34. Nxd6 {[%clk 0:00:36.8]} 34... Bd7 {[%clk 0:00:26]} 35. Nce4+
{[%clk 0:00:36.2]} 35... Ke7 {[%clk 0:00:25.6]} 36. Be3 {[%clk 0:00:35.5]} 36...
Bxe3 {[%clk 0:00:24.4]} 37. Kxe3 {[%clk 0:00:35.9]} 37... h6 {[%clk 0:00:24.1]}
38. b5 {[%clk 0:00:35.7]} 38... Bf5 {[%clk 0:00:24]} 39. b6 {[%clk 0:00:33.8]}
39... Kd7 {[%clk 0:00:21.5]} 40. Nxf5 {[%clk 0:00:32.6]} 40... gxf5 {[%clk
0:00:21.3]} 41. Nc5+ {[%clk 0:00:33.1]} 41... Kd6 {[%clk 0:00:19.6]} 42. b7
{[%clk 0:00:32.7]} 42... Kc7 {[%clk 0:00:19.9]} 43. d6+ {[%clk 0:00:32.9]} 43...
Kb8 {[%clk 0:00:18.6]} 44. d7 {[%clk 0:00:32.6]} 44... f4+ {[%clk 0:00:18.8]}
1-0

[Event "*** SCC Grand Prix: Titled Tuesday Blitz"]
[Site "Chess.com"]
[Date "2020.07.07"]
[Round "10"]
[White "okriak"]
[Black "Roman_Ovetchkin"]
[Result "0-1"]
[WhiteElo "2710"]
[BlackElo "2598"]
[TimeControl "180+1"]
[EndTime "11:57:51 PDT"]
[Termination "Roman_Ovetchkin won by resignation"]

1. Nf3 {[%clk 0:03:00.9]} 1... Nf6 {[%clk 0:02:58.9]} 2. c4 {[%clk 0:03:00.6]}
2... g6 {[%clk 0:02:59.1]} 3. Nc3 {[%clk 0:03:00.6]} 3... Bg7 {[%clk 0:02:59.7]}
4. e4 {[%clk 0:03:00.2]} 4... d6 {[%clk 0:02:59]} 5. d4 {[%clk 0:03:00.5]} 5...
O-O {[%clk 0:02:59]} 6. h3 {[%clk 0:03:01]} 6... e5 {[%clk 0:02:57.3]} 7. dxe5
{[%clk 0:03:00.8]} 7... dxe5 {[%clk 0:02:56.9]} 8. Bg5 {[%clk 0:03:01.4]} 8...
Qxd1+ {[%clk 0:02:45.4]} 9. Rxd1 {[%clk 0:03:00.8]} 9... Nc6 {[%clk 0:02:28.4]}
10. c5 {[%clk 0:02:43.2]} 10... Be6 {[%clk 0:02:25.6]} 11. Bb5 {[%clk
0:02:42.5]} 11... Nd7 {[%clk 0:02:17.9]} 12. O-O {[%clk 0:02:34.7]} 12... Rfe8
{[%clk 0:01:51.5]} 13. Nd5 {[%clk 0:02:28.4]} 13... Rac8 {[%clk 0:01:37.1]} 14.
b4 {[%clk 0:02:14.9]} 14... f6 {[%clk 0:01:29.8]} 15. Be3 {[%clk 0:02:10.7]}
15... Nf8 {[%clk 0:01:28.2]} 16. a3 {[%clk 0:01:59.4]} 16... Bf7 {[%clk
0:01:25.7]} 17. Nd2 {[%clk 0:01:54.6]} 17... Ne6 {[%clk 0:01:24.7]} 18. Nc4
{[%clk 0:01:53.5]} 18... a6 {[%clk 0:01:12.2]} 19. Bxc6 {[%clk 0:01:49.9]} 19...
bxc6 {[%clk 0:01:11.1]} 20. Nc3 {[%clk 0:01:47.3]} 20... Nd4 {[%clk 0:01:07.7]}
21. Na5 {[%clk 0:01:45.3]} 21... f5 {[%clk 0:01:07.5]} 22. f3 {[%clk 0:01:43.2]}
22... Bf6 {[%clk 0:01:05.4]} 23. Rf2 {[%clk 0:01:27.5]} 23... Re6 {[%clk
0:00:53.5]} 24. Rfd2 {[%clk 0:01:20.8]} 24... Be8 {[%clk 0:00:44.1]} 25. exf5
{[%clk 0:01:12.9]} 25... gxf5 {[%clk 0:00:43.5]} 26. Bxd4 {[%clk 0:01:12.7]}
26... exd4 {[%clk 0:00:43]} 27. Ne2 {[%clk 0:01:13.1]} 27... Re3 {[%clk
0:00:34]} 28. Nc4 {[%clk 0:01:06.8]} 28... Rc3 {[%clk 0:00:33.1]} 29. Nxc3
{[%clk 0:01:05.6]} 29... dxc3 {[%clk 0:00:32.6]} 30. Rc2 {[%clk 0:01:04.3]}
30... Bf7 {[%clk 0:00:31]} 31. Na5 {[%clk 0:01:02.6]} 31... Bd5 {[%clk
0:00:29.6]} 32. Rd3 {[%clk 0:01:02.1]} 32... Re8 {[%clk 0:00:28.5]} 33. Kf2
{[%clk 0:00:59.6]} 33... f4 {[%clk 0:00:28.1]} 34. Re2 {[%clk 0:00:46.6]} 34...
c2 {[%clk 0:00:22.9]} 35. Rxe8+ {[%clk 0:00:45.6]} 35... Kf7 {[%clk 0:00:23]}
0-1

[Event "*** SCC Grand Prix: Titled Tuesday Blitz"]
[Site "Chess.com"]
[Date "2020.07.07"]
[Round "10"]
[White "Godzillator"]
[Black "Efremov_Vlad"]
[Result "1/2-1/2"]
[WhiteElo "2348"]
[BlackElo "2216"]
[TimeControl "180+1"]
[EndTime "11:57:51 PDT"]
[Termination "Game drawn by repetition"]

1. d4 {[%clk 0:03:00.9]} 1... d5 {[%clk 0:02:59.9]} 2. c4 {[%clk 0:02:56.2]}
2... e6 {[%clk 0:03:00]} 3. cxd5 {[%clk 0:02:56.1]} 3... exd5 {[%clk 0:02:59.7]}
4. Nc3 {[%clk 0:02:55.2]} 4... Nf6 {[%clk 0:02:59.1]} 5. Bg5 {[%clk 0:02:54.3]}
5... Bb4 {[%clk 0:02:58.4]} 6. Qc2 {[%clk 0:02:52.6]} 6... c5 {[%clk 0:02:56.6]}
7. Nf3 {[%clk 0:02:52.5]} 7... h6 {[%clk 0:02:54.6]} 8. Bxf6 {[%clk 0:02:52.2]}
8... Qxf6 {[%clk 0:02:53.7]} 9. a3 {[%clk 0:02:51.9]} 9... Bxc3+ {[%clk
0:02:52]} 10. Qxc3 {[%clk 0:02:51.6]} 10... c4 {[%clk 0:02:45.4]} 11. e4 {[%clk
0:02:47.3]} 11... dxe4 {[%clk 0:02:38.1]} 12. Ne5 {[%clk 0:02:43.3]} 12... O-O
{[%clk 0:02:37.2]} 13. Bxc4 {[%clk 0:02:42.6]} 13... Nc6 {[%clk 0:02:28.8]} 14.
Nxc6 {[%clk 0:02:37.1]} 14... Qxc6 {[%clk 0:02:24.6]} 15. O-O {[%clk 0:02:34.9]}
15... Be6 {[%clk 0:02:20.9]} 16. Bxe6 {[%clk 0:02:33.6]} 16... Qxe6 {[%clk
0:02:19.4]} 17. Rfe1 {[%clk 0:02:33.4]} 17... Qd5 {[%clk 0:02:13.5]} 18. Rac1
{[%clk 0:02:29.3]} 18... Rad8 {[%clk 0:02:08.9]} 19. Rcd1 {[%clk 0:02:24.9]}
19... Rfe8 {[%clk 0:02:03.4]} 20. g3 {[%clk 0:02:18.4]} 20... Re6 {[%clk
0:01:51.6]} 21. Qc5 {[%clk 0:02:11.5]} 21... b6 {[%clk 0:01:32.7]} 22. Qxd5
{[%clk 0:02:08.8]} 22... Rxd5 {[%clk 0:01:33.3]} 23. Rd2 {[%clk 0:02:06]} 23...
f5 {[%clk 0:01:32.2]} 24. f3 {[%clk 0:02:02.3]} 24... e3 {[%clk 0:01:28.5]} 25.
Rd3 {[%clk 0:02:00.5]} 25... Red6 {[%clk 0:01:19.8]} 26. Rdxe3 {[%clk
0:01:57.8]} 26... Rxd4 {[%clk 0:01:20.2]} 27. Re8+ {[%clk 0:01:51.7]} 27... Kh7
{[%clk 0:01:19.5]} 28. R8e7 {[%clk 0:01:51.6]} 28... Rd7 {[%clk 0:01:19.4]} 29.
R1e2 {[%clk 0:01:46.2]} 29... Rd2 {[%clk 0:01:09.1]} 30. Rxd2 {[%clk 0:01:44.1]}
30... Rxd2 {[%clk 0:01:08.2]} 31. Rxa7 {[%clk 0:01:40.9]} 31... Rxb2 {[%clk
0:01:07.6]} 32. f4 {[%clk 0:01:40.4]} 32... Ra2 {[%clk 0:01:05]} 33. Ra6 {[%clk
0:01:38.2]} 33... b5 {[%clk 0:01:04.5]} 34. Ra5 {[%clk 0:01:38.4]} 34... g6
{[%clk 0:00:59.8]} 35. Rxb5 {[%clk 0:01:36.7]} 35... Rxa3 {[%clk 0:00:59.2]} 36.
Rb7+ {[%clk 0:01:36.7]} 36... Kg8 {[%clk 0:00:58.6]} 37. Kg2 {[%clk 0:01:35.7]}
37... Ra2+ {[%clk 0:00:57.1]} 38. Kh3 {[%clk 0:01:35.8]} 38... Ra3 {[%clk
0:00:57.2]} 39. Kh4 {[%clk 0:01:35.2]} 39... Ra2 {[%clk 0:00:51.1]} 40. h3
{[%clk 0:01:34.8]} 40... Rh2 {[%clk 0:00:46.9]} 41. Ra7 {[%clk 0:01:27.6]} 41...
Kh8 {[%clk 0:00:46.1]} 42. g4 {[%clk 0:01:18.4]} 42... fxg4 {[%clk 0:00:42]} 43.
Kxg4 {[%clk 0:01:17.7]} 43... Rg2+ {[%clk 0:00:41.2]} 44. Kf3 {[%clk 0:01:16.9]}
44... Rh2 {[%clk 0:00:41]} 45. Kg3 {[%clk 0:01:16.9]} 45... Rb2 {[%clk
0:00:41.1]} 46. h4 {[%clk 0:01:14.7]} 46... Rb3+ {[%clk 0:00:38.2]} 47. Kg4
{[%clk 0:01:10.9]} 47... Rb1 {[%clk 0:00:34.4]} 48. Kf3 {[%clk 0:01:06.8]} 48...
Rh1 {[%clk 0:00:33.4]} 49. Kg3 {[%clk 0:01:05.9]} 49... Rg1+ {[%clk 0:00:33.6]}
50. Kf2 {[%clk 0:01:05.9]} 50... Rh1 {[%clk 0:00:33.7]} 51. Kg3 {[%clk
0:01:04.4]} 51... Rg1+ {[%clk 0:00:33.9]} 52. Kh3 {[%clk 0:01:02.3]} 52... Rh1+
{[%clk 0:00:33.7]} 53. Kg4 {[%clk 0:00:55.8]} 53... Rg1+ {[%clk 0:00:33.6]} 54.
Kf3 {[%clk 0:00:55.8]} 54... Rh1 {[%clk 0:00:33.7]} 55. Kg3 {[%clk 0:00:42.1]}
1/2-1/2

[Event "*** SCC Grand Prix: Titled Tuesday Blitz"]
[Site "Chess.com"]
[Date "2020.07.07"]
[Round "10"]
[White "GMKrikor"]
[Black "SerGo055"]
[Result "1-0"]
[WhiteElo "2681"]
[BlackElo "2554"]
[TimeControl "180+1"]
[EndTime "11:57:54 PDT"]
[Termination "GMKrikor won by resignation"]

1. e4 {[%clk 0:03:00.9]} 1... d5 {[%clk 0:02:59.2]} 2. exd5 {[%clk 0:03:00.5]}
2... Qxd5 {[%clk 0:02:59.5]} 3. Nc3 {[%clk 0:02:59.9]} 3... Qd8 {[%clk
0:02:59.3]} 4. d4 {[%clk 0:02:59.5]} 4... Nf6 {[%clk 0:02:59.6]} 5. Nf3 {[%clk
0:02:59.4]} 5... c6 {[%clk 0:02:59.9]} 6. Bc4 {[%clk 0:02:39.4]} 6... Bf5 {[%clk
0:02:59.4]} 7. Ne5 {[%clk 0:02:38.3]} 7... e6 {[%clk 0:02:58.5]} 8. g4 {[%clk
0:02:38.9]} 8... Be4 {[%clk 0:02:58.5]} 9. Nxe4 {[%clk 0:02:35.5]} 9... Nxe4
{[%clk 0:02:59.4]} 10. Qf3 {[%clk 0:02:35]} 10... Nd6 {[%clk 0:02:59.1]} 11. Bb3
{[%clk 0:02:19.2]} 11... Nd7 {[%clk 0:02:58.9]} 12. Bf4 {[%clk 0:02:09.9]} 12...
h5 {[%clk 0:02:58.5]} 13. gxh5 {[%clk 0:02:06.4]} 13... Nf6 {[%clk 0:02:57.7]}
14. Nxc6 {[%clk 0:01:23.9]} 14... Qb6 {[%clk 0:02:12]} 15. Ba4 {[%clk
0:00:42.2]} 15... Nb5 {[%clk 0:02:10.6]} 16. Ne5 {[%clk 0:00:25.9]} 16... Bd6
{[%clk 0:01:03.7]} 17. O-O-O {[%clk 0:00:21.5]} 17... Bxe5 {[%clk 0:00:59.8]}
18. dxe5 {[%clk 0:00:20.3]} 18... Nd5 {[%clk 0:01:00.1]} 19. Be3 {[%clk
0:00:17]} 19... Qa5 {[%clk 0:00:58.4]} 20. Bxb5+ {[%clk 0:00:14.6]} 20... Qxb5
{[%clk 0:00:58.4]} 21. Rhg1 {[%clk 0:00:12.4]} 21... Kf8 {[%clk 0:00:49.9]} 22.
h6 {[%clk 0:00:12.1]} 22... gxh6 {[%clk 0:00:46.8]} 23. Rxd5 {[%clk 0:00:07.8]}
23... Qxd5 {[%clk 0:00:44.1]} 24. Qf6 {[%clk 0:00:07.5]} 24... Rh7 {[%clk
0:00:24.6]} 25. Bxh6+ {[%clk 0:00:07.2]} 25... Rxh6 {[%clk 0:00:13.1]} 26. Qxh6+
{[%clk 0:00:08.1]} 26... Ke7 {[%clk 0:00:08.3]} 27. Qg5+ {[%clk 0:00:08.3]}
27... Kd7 {[%clk 0:00:06.7]} 28. Rd1 {[%clk 0:00:07.8]} 1-0

[Event "*** SCC Grand Prix: Titled Tuesday Blitz"]
[Site "Chess.com"]
[Date "2020.07.07"]
[Round "10"]
[White "CzechmVIII"]
[Black "InitiatingASC"]
[Result "0-1"]
[WhiteElo "2182"]
[BlackElo "2328"]
[TimeControl "180+1"]
[EndTime "11:57:56 PDT"]
[Termination "InitiatingASC won by resignation"]

1. e4 {[%clk 0:03:00.9]} 1... c5 {[%clk 0:03:00]} 2. Nf3 {[%clk 0:03:00.9]} 2...
Nc6 {[%clk 0:03:00.3]} 3. Nc3 {[%clk 0:03:00.8]} 3... Nf6 {[%clk 0:03:00.2]} 4.
Bb5 {[%clk 0:02:59.9]} 4... g6 {[%clk 0:03:00]} 5. e5 {[%clk 0:02:58.2]} 5...
Ng4 {[%clk 0:02:59.8]} 6. Bxc6 {[%clk 0:02:57.8]} 6... dxc6 {[%clk 0:03:00.6]}
7. d3 {[%clk 0:02:35.4]} 7... Nh6 {[%clk 0:02:58.5]} 8. Bf4 {[%clk 0:02:21.7]}
8... Nf5 {[%clk 0:02:57.1]} 9. Ne4 {[%clk 0:02:12.2]} 9... b6 {[%clk 0:02:54.8]}
10. Qe2 {[%clk 0:02:01.9]} 10... Bg7 {[%clk 0:02:54.3]} 11. Nf6+ {[%clk
0:01:35.3]} 11... Kf8 {[%clk 0:02:52.3]} 12. Ne4 {[%clk 0:01:33.2]} 12... Nd4
{[%clk 0:02:52.2]} 13. Nxd4 {[%clk 0:01:31.8]} 13... Qxd4 {[%clk 0:02:51.9]} 14.
c3 {[%clk 0:01:24.3]} 14... Qd5 {[%clk 0:02:50.7]} 15. O-O {[%clk 0:01:08.7]}
15... Bxe5 {[%clk 0:02:47]} 16. Bxe5 {[%clk 0:01:04.2]} 16... Qxe5 {[%clk
0:02:46.4]} 17. Rae1 {[%clk 0:00:49.6]} 17... Kg7 {[%clk 0:02:41.1]} 18. Qc2
{[%clk 0:00:40.7]} 18... Bf5 {[%clk 0:02:35.2]} 19. Ng3 {[%clk 0:00:39]} 19...
Qd6 {[%clk 0:02:29.5]} 20. Nxf5+ {[%clk 0:00:38.5]} 20... gxf5 {[%clk
0:02:29.7]} 21. d4 {[%clk 0:00:36.4]} 21... e6 {[%clk 0:02:25.7]} 22. dxc5
{[%clk 0:00:36.3]} 22... Qxc5 {[%clk 0:02:25.6]} 23. Qd2 {[%clk 0:00:34.8]}
23... h6 {[%clk 0:02:22]} 24. Qf4 {[%clk 0:00:33.6]} 24... Rhd8 {[%clk
0:01:53.6]} 25. Re3 {[%clk 0:00:31.7]} 25... Qe7 {[%clk 0:01:47.7]} 26. Rg3+
{[%clk 0:00:21.5]} 26... Kh7 {[%clk 0:01:45.2]} 27. Re1 {[%clk 0:00:19.7]} 27...
Qf6 {[%clk 0:01:41.4]} 28. Qf3 {[%clk 0:00:16.8]} 28... Rd6 {[%clk 0:01:33.3]}
29. Rh3 {[%clk 0:00:13.6]} 29... Rad8 {[%clk 0:01:28.5]} 30. Qe3 {[%clk
0:00:10.2]} 30... Rd1 {[%clk 0:01:24.2]} 31. f4 {[%clk 0:00:09.2]} 31... Qe7
{[%clk 0:01:12.7]} 32. Rxd1 {[%clk 0:00:06.6]} 32... Rxd1+ {[%clk 0:01:11.6]}
33. Kf2 {[%clk 0:00:06.9]} 33... Qd8 {[%clk 0:01:10.1]} 34. Qe5 {[%clk
0:00:05.9]} 34... Qd2+ {[%clk 0:00:58.8]} 35. Kg3 {[%clk 0:00:04.5]} 35... Qe1+
{[%clk 0:00:55.3]} 36. Qxe1 {[%clk 0:00:04.6]} 36... Rxe1 {[%clk 0:00:55.4]} 37.
Kh4 {[%clk 0:00:04.4]} 37... Re2 {[%clk 0:00:53.2]} 38. Rd3 {[%clk 0:00:04.2]}
38... Rxg2 {[%clk 0:00:50.2]} 39. Kh3 {[%clk 0:00:03.1]} 39... Rxb2 {[%clk
0:00:49.7]} 40. Rd7 {[%clk 0:00:04]} 40... Rxa2 {[%clk 0:00:42.4]} 41. Rxf7+
{[%clk 0:00:04.3]} 41... Kg6 {[%clk 0:00:42.7]} 42. Rc7 {[%clk 0:00:04.5]} 42...
c5 {[%clk 0:00:41.4]} 43. Rc6 {[%clk 0:00:04.9]} 43... Kf6 {[%clk 0:00:41.4]}
44. Kg3 {[%clk 0:00:04.8]} 44... Ra3 {[%clk 0:00:41.7]} 45. Kf2 {[%clk 0:00:04]}
45... Rxc3 {[%clk 0:00:41.8]} 46. Rc7 {[%clk 0:00:04.7]} 46... a5 {[%clk
0:00:41.6]} 0-1

[Event "*** SCC Grand Prix: Titled Tuesday Blitz"]
[Site "Chess.com"]
[Date "2020.07.07"]
[Round "10"]
[White "GustavoJuarezF"]
[Black "ChessArchitect64"]
[Result "1-0"]
[WhiteElo "1997"]
[BlackElo "1866"]
[TimeControl "180+1"]
[EndTime "11:57:57 PDT"]
[Termination "GustavoJuarezF won by resignation"]

1. e4 {[%clk 0:03:00.9]} 1... c5 {[%clk 0:02:59.8]} 2. Nc3 {[%clk 0:02:58.6]}
2... Nc6 {[%clk 0:02:59.5]} 3. g3 {[%clk 0:02:58.6]} 3... g6 {[%clk 0:02:59.1]}
4. Bg2 {[%clk 0:02:58.5]} 4... Bg7 {[%clk 0:02:59.3]} 5. d3 {[%clk 0:02:58.2]}
5... d6 {[%clk 0:02:59.6]} 6. Be3 {[%clk 0:02:58]} 6... Rb8 {[%clk 0:02:59]} 7.
Qd2 {[%clk 0:02:49.2]} 7... b5 {[%clk 0:02:57.3]} 8. Nf3 {[%clk 0:02:43.1]} 8...
b4 {[%clk 0:02:54.7]} 9. Nd1 {[%clk 0:02:42.8]} 9... e6 {[%clk 0:02:46.5]} 10.
O-O {[%clk 0:02:41.4]} 10... Nge7 {[%clk 0:02:46]} 11. d4 {[%clk 0:02:37.1]}
11... cxd4 {[%clk 0:02:40.5]} 12. Nxd4 {[%clk 0:02:36.5]} 12... O-O {[%clk
0:02:40.6]} 13. c3 {[%clk 0:02:34.3]} 13... bxc3 {[%clk 0:02:39.6]} 14. Nxc3
{[%clk 0:02:33.8]} 14... Ba6 {[%clk 0:02:38.6]} 15. Rfd1 {[%clk 0:02:32]} 15...
Ne5 {[%clk 0:02:32.1]} 16. b3 {[%clk 0:02:26.3]} 16... N7c6 {[%clk 0:02:06.3]}
17. h3 {[%clk 0:02:24.2]} 17... Nxd4 {[%clk 0:02:04.5]} 18. Bxd4 {[%clk
0:02:23.2]} 18... Qc7 {[%clk 0:02:03.3]} 19. Rac1 {[%clk 0:02:18.3]} 19... Rfc8
{[%clk 0:01:58.6]} 20. Na4 {[%clk 0:02:03.3]} 20... Qe7 {[%clk 0:01:52.8]} 21.
Rxc8+ {[%clk 0:01:58.4]} 21... Rxc8 {[%clk 0:01:52.1]} 22. Rc1 {[%clk
0:01:57.6]} 22... Rxc1+ {[%clk 0:01:43.2]} 23. Qxc1 {[%clk 0:01:57.1]} 23...
Nf3+ {[%clk 0:01:35.6]} 24. Bxf3 {[%clk 0:01:56]} 24... Bxd4 {[%clk 0:01:36.5]}
25. Qd2 {[%clk 0:01:47.9]} 25... e5 {[%clk 0:01:32.4]} 26. Be2 {[%clk
0:01:40.9]} 26... Bb7 {[%clk 0:01:30.9]} 27. Bd3 {[%clk 0:01:35]} 27... h5
{[%clk 0:01:29.3]} 28. Kh2 {[%clk 0:01:33.7]} 28... h4 {[%clk 0:01:29]} 29. Nc3
{[%clk 0:01:21.8]} 29... hxg3+ {[%clk 0:01:27.7]} 30. fxg3 {[%clk 0:01:20.9]}
30... Bxc3 {[%clk 0:01:20.6]} 31. Qxc3 {[%clk 0:01:19.7]} 31... Qf6 {[%clk
0:01:20]} 32. Kg2 {[%clk 0:01:06.9]} 32... d5 {[%clk 0:01:19.7]} 33. Qe1 {[%clk
0:01:02.1]} 33... Qd6 {[%clk 0:01:03.4]} 34. Kh2 {[%clk 0:00:50.3]} 34... Kg7
{[%clk 0:01:02.8]} 35. Qe3 {[%clk 0:00:33.7]} 35... a5 {[%clk 0:00:46.5]} 36. h4
{[%clk 0:00:30.5]} 36... dxe4 {[%clk 0:00:35.8]} 37. Bxe4 {[%clk 0:00:28.9]}
37... Bxe4 {[%clk 0:00:33.8]} 38. Qxe4 {[%clk 0:00:28.9]} 38... Qd4 {[%clk
0:00:32.9]} 39. Qxd4 {[%clk 0:00:21.1]} 39... exd4 {[%clk 0:00:32.7]} 40. Kg2
{[%clk 0:00:21.7]} 40... Kf6 {[%clk 0:00:33.4]} 41. Kf3 {[%clk 0:00:21.9]} 41...
Ke5 {[%clk 0:00:34.3]} 42. a3 {[%clk 0:00:21.7]} 42... Kd5 {[%clk 0:00:35.2]}
43. Ke2 {[%clk 0:00:20]} 43... Kc5 {[%clk 0:00:36.1]} 44. Kd3 {[%clk 0:00:19.5]}
44... f5 {[%clk 0:00:36.3]} 45. b4+ {[%clk 0:00:17.9]} 45... axb4 {[%clk
0:00:36.5]} 46. axb4+ {[%clk 0:00:18.1]} 46... Kxb4 {[%clk 0:00:36.7]} 47. Kxd4
{[%clk 0:00:18.7]} 47... f4 {[%clk 0:00:37.6]} 48. gxf4 {[%clk 0:00:17.6]} 48...
Kb5 {[%clk 0:00:38.5]} 49. Ke5 {[%clk 0:00:17.7]} 49... Kc6 {[%clk 0:00:39.4]}
50. Kf6 {[%clk 0:00:18.2]} 50... Kd7 {[%clk 0:00:40.3]} 51. Kxg6 {[%clk
0:00:18.8]} 1-0